bitfinex-derivatives/quotes_BTCF0:USTF0_20210705
["timestamp","ask_amount","ask_price","bid_price","bid_amount"]
[1625481639810,1.27586706,34390.0,34389.0,0.72216947]
[1625481640011,1.02038005,34390.0,34389.0,0.72216947]
[1625481640215,1.02038005,34390.0,34389.0,0.57744819]
[1625481640412,1.02038005,34390.0,34389.0,0.63644819]
[1625481640612,0.46088005,34390.0,34389.0,0.63644819]
[1625481640714,0.46088005,34390.0,34389.0,0.57744819]
[1625481640813,0.46088005,34390.0,34389.0,1.37549882]
[1625481640916,0.60109875,34396.0,34390.0,0.059]
[1625481641113,0.60109875,34396.0,34390.0,0.618]
[1625481641418,0.60109875,34396.0,34395.0,0.72172632]
[1625481641515,0.60109875,34396.0,34395.0,1.06259632]
[1625481641716,0.60109875,34396.0,34395.0,1.12159632]
[1625481641917,0.60109875,34396.0,34395.0,1.06671497]
[1625481642016,1.19334524,34401.0,34397.0,4.2165]
[1625481642017,0.25631744,34400.0,34397.0,4.2165]
[1625481642224,0.25631744,34400.0,34397.0,4.3345]
[1625481642525,0.25631744,34400.0,34398.0,0.00411839]
[1625481642625,0.25631744,34400.0,34398.0,0.12211839]
[1625481642976,2.14472596,34405.0,34398.0,0.12211839]
[1625481642977,0.25675523,34404.0,34399.0,2.57590199]
[1625481643078,0.25675523,34404.0,34399.0,2.63490199]
[1625481643278,0.25675523,34404.0,34399.0,2.69390199]
[1625481643379,1.03557962,34405.0,34402.0,1.19897423]
[1625481643479,1.03557962,34405.0,34403.0,0.48115088]
[1625481643580,1.03557962,34405.0,34403.0,0.54015088]
[1625481643679,1.20677961,34405.0,34403.0,0.54015088]
[1625481644731,1.20677961,34405.0,34403.0,0.59915088]
[1625481644830,1.20677961,34405.0,34403.0,0.85215088]
[1625481644930,1.20677961,34405.0,34404.0,0.00411881]
[1625481645034,1.20677961,34405.0,34404.0,0.06311881]
[1625481645130,1.20677961,34405.0,34404.0,0.12211881]
[1625481645232,0.95,34405.0,34404.0,0.12211881]
[1625481645431,0.95,34405.0,34404.0,0.118]
[1625481645731,0.95,34405.0,34404.0,0.12211874]
[1625481646484,0.95,34405.0,34404.0,0.118]
[1625481647293,0.95,34405.0,34404.0,1.31548182]
[1625481647494,0.95,34405.0,34404.0,1.55605726]
[1625481648991,0.95,34405.0,34404.0,0.35857544]
[1625481651748,0.95,34405.0,34404.0,0.29957544]
[1625481651847,0.95,34405.0,34404.0,0.35857544]
[1625481656303,0.95,34405.0,34404.0,0.36057544]
[1625481658455,0.95,34405.0,34404.0,0.70217245]
[1625481658856,0.95,34405.0,34404.0,1.03058245]
[1625481660060,0.95,34405.0,34404.0,0.68898544]
[1625481660660,0.95,34405.0,34404.0,0.36057544]
[1625481663819,0.95,34405.0,34404.0,0.61257544]
[1625481664773,0.95,34405.0,34404.0,1.29563465]
[1625481666125,0.95,34405.0,34404.0,1.39563465]
[1625481667633,0.95,34405.0,34404.0,1.39975132]
[1625481671040,0.95,34405.0,34404.0,2.42141136]
[1625481675150,0.95,34405.0,34404.0,3.61004115]
[1625481679460,0.891,34405.0,34404.0,4.05965809]
[1625481679559,0.891,34405.0,34404.0,4.11865809]
[1625481679908,0.08550753,34416.0,34404.0,4.11865809]
[1625481680113,0.057,34418.0,34404.0,5.4741397]
[1625481680309,0.057,34418.0,34405.0,0.00411743]
[1625481680409,0.057,34418.0,34405.0,0.06311743]
[1625481680510,0.057,34418.0,34405.0,0.12211743]
[1625481680610,0.057,34418.0,34413.0,0.59318805]
[1625481680711,1.51501378,34420.0,34413.0,0.84195805]
[1625481680812,1.51501378,34420.0,34413.0,0.90095805]
[1625481681112,1.51501378,34420.0,34414.0,0.0041174]
[1625481681311,1.51501378,34420.0,34414.0,0.0631174]
[1625481681413,0.9171,34420.0,34414.0,0.65602169]
[1625481681662,0.9171,34420.0,34415.0,0.00411742]
[1625481681864,1.17346293,34420.0,34415.0,0.06311742]
[1625481681961,1.17346293,34420.0,34419.0,0.72172632]
[1625481682362,1.51499473,34420.0,34419.0,0.72172632]
[1625481682463,1.51499473,34420.0,34419.0,0.72584374]
[1625481682866,0.9171,34420.0,34419.0,0.72584374]
[1625481683668,0.9761,34420.0,34419.0,0.72584374]
[1625481685321,1.0616183,34420.0,34419.0,0.72584374]
[1625481685421,1.0026183,34420.0,34419.0,0.72584374]
[1625481685821,0.9171,34420.0,34419.0,0.72584374]
[1625481686173,0.9761,34420.0,34419.0,0.72584374]
[1625481686826,0.9171,34420.0,34419.0,0.72584374]
[1625481686929,1.0026285,34420.0,34419.0,0.72584374]
[1625481687224,0.9171,34420.0,34419.0,0.72584374]
[1625481687326,0.9761,34420.0,34419.0,0.72584374]
[1625481687627,1.23259564,34420.0,34419.0,0.72584374]
[1625481688327,1.17359564,34420.0,34419.0,0.72584374]
[1625481688677,1.23259564,34420.0,34419.0,0.72584374]
[1625481689935,1.48892517,34420.0,34419.0,0.72584374]
[1625481690486,1.317985,34420.0,34419.0,0.72584374]
[1625481690586,1.317985,34420.0,34419.0,0.72172632]
[1625481690838,1.65969901,34420.0,34419.0,0.72172632]
[1625481691136,1.65969901,34420.0,34419.0,0.72584717]
[1625481691237,0.9761,34420.0,34419.0,0.72584717]
[1625481691691,1.66020862,34420.0,34419.0,0.72584717]
[1625481695445,1.66020862,34420.0,34419.0,0.9813122]
[1625481695446,2.68824849,34420.0,34419.0,0.9813122]
[1625481696148,2.68824849,34420.0,34419.0,0.81100218]
[1625481697701,3.04096849,34420.0,34419.0,0.81100218]
[1625481697806,4.24180924,34420.0,34419.0,0.82608684]
[1625481698006,4.25669967,34420.0,34419.0,0.82196599]
[1625481698112,4.49727511,34420.0,34419.0,0.82196599]
[1625481698304,4.49727511,34420.0,34419.0,0.82396599]
[1625481698403,4.49727511,34420.0,34419.0,0.48315088]
[1625481698404,5.86967963,34420.0,34419.0,0.48315088]
[1625481699504,7.41383829,34420.0,34419.0,0.48315088]
[1625481699704,7.41383829,34420.0,34391.0,0.26996]
[1625481699805,7.41383829,34420.0,34396.0,0.057]
[1625481699906,1.0295023,34414.0,34413.0,0.008]
[1625481700008,1.1475023,34414.0,34413.0,0.008]
[1625481700109,1.38807774,34414.0,34413.0,0.008]
[1625481700205,1.38807774,34414.0,34413.0,0.11212159]
[1625481700306,1.40296975,34414.0,34413.0,0.11212159]
[1625481700656,3.97876181,34414.0,34413.0,0.11212159]
[1625481701257,3.97676181,34414.0,34413.0,0.10412159]
[1625481701357,3.97276181,34414.0,34413.0,0.11012159]
[1625481701558,4.06076181,34414.0,34413.0,0.11012159]
[1625481701906,3.97276181,34414.0,34413.0,0.11012159]
[1625481703462,4.48813515,34414.0,34413.0,0.11012159]
[1625481704312,4.48213515,34414.0,34413.0,0.11012159]
[1625481706716,4.48213515,34414.0,34413.0,0.106]
[1625481707120,4.46724314,34414.0,34413.0,0.106]
[1625481707321,4.46724314,34414.0,34413.0,0.1]
[1625481707421,4.48214399,34414.0,34413.0,0.1]
[1625481708624,4.48214399,34414.0,34411.0,0.5134069]
[1625481708726,6.02822201,34414.0,34410.0,0.51561102]
[1625481708926,5.96922201,34414.0,34410.0,0.51561102]
[1625481709027,5.89532116,34414.0,34411.0,0.00411926]
[1625481709279,1.20245358,34412.0,34411.0,0.00411926]
[1625481710029,0.51544494,34412.0,34411.0,1.71368786]
[1625481711981,0.57444494,34412.0,34411.0,1.71368786]
[1625481712283,0.51544494,34412.0,34411.0,1.71368786]
[1625481712382,0.57444494,34412.0,34411.0,1.71368786]
[1625481712483,0.51544494,34412.0,34411.0,1.71368786]
[1625481712635,0.51544494,34412.0,34411.0,0.51698984]
[1625481712636,1.71801213,34412.0,34411.0,0.51698984]
[1625481713486,1.77701213,34412.0,34411.0,0.51698984]
[1625481714943,1.77701213,34412.0,34411.0,0.51287058]
[1625481715040,1.77701213,34412.0,34411.0,0.51699085]
[1625481715647,1.77701213,34412.0,34411.0,1.71432083]
[1625481716097,1.77701213,34412.0,34411.0,0.51699085]
[1625481716847,1.77701213,34412.0,34411.0,1.7148831]
[1625481717516,1.77701213,34412.0,34411.0,1.9521531]
[1625481717900,0.57444494,34412.0,34411.0,3.32000903]
[1625481719757,0.51544494,34412.0,34411.0,3.32000903]
[1625481720156,0.57444494,34412.0,34411.0,3.32000903]
[1625481724312,0.059,34412.0,34411.0,2.80713845]
[1625481724413,0.059,34412.0,34411.0,2.56986845]
[1625481724512,0.29957544,34412.0,34411.0,2.56986845]
[1625481724916,2.01854076,34412.0,34411.0,1.71468518]
[1625481725371,3.39372972,34412.0,34411.0,1.71468518]
[1625481725480,3.39372972,34412.0,34411.0,0.51679293]
[1625481725596,3.45272972,34412.0,34411.0,0.51679293]
[1625481725782,3.4676707,34412.0,34411.0,0.51679293]
[1625481726167,5.01491549,34412.0,34411.0,0.51679293]
[1625481726616,5.01491549,34412.0,34411.0,0.00412027]
[1625481728423,5.10081549,34412.0,34411.0,0.00412027]
[1625481728649,5.10081549,34412.0,34411.0,2.027e-05]
[1625481728736,5.10081549,34412.0,34410.0,0.51320023]
[1625481728835,5.10081549,34412.0,34407.0,1.1971263]
[1625481728927,5.10081549,34412.0,34409.0,0.41249054]
[1625481729025,5.01491549,34412.0,34409.0,0.27259054]
[1625481729337,0.01491998,34411.0,34409.0,0.27259054]
[1625481729427,4.64210605,34410.0,34407.0,0.51357997]
[1625481729527,4.70110605,34410.0,34407.0,0.51357997]
[1625481729827,0.0148311,34409.0,34408.0,0.0041386]
[1625481730027,0.0738311,34409.0,34408.0,0.0041386]
[1625481730231,0.1328311,34409.0,34408.0,0.0041386]
[1625481730327,0.1328311,34409.0,34407.0,0.00413892]
[1625481730629,0.49598127,34408.0,34404.0,0.006]
[1625481730727,0.55498127,34408.0,34404.0,0.006]
[1625481730828,0.61398127,34408.0,34404.0,0.006]
[1625481731179,2.93778721,34407.0,34404.0,0.006]
[1625481731279,3.05578721,34407.0,34404.0,0.006]
[1625481731378,3.05578721,34407.0,34406.0,0.00813913]
[1625481732482,3.04095664,34407.0,34406.0,0.004]
[1625481732583,3.28153208,34407.0,34406.0,0.004]
[1625481733081,1.73409456,34407.0,34406.0,0.004]
[1625481733683,3.27997377,34407.0,34406.0,0.004]
[1625481734337,1.73409456,34407.0,34406.0,0.004]
[1625481734685,2.76472881,34407.0,34406.0,0.004]
[1625481737239,2.76472881,34407.0,34403.0,0.002]
[1625481737343,4.31004047,34407.0,34403.0,0.002]
[1625481737790,2.40291453,34404.0,34403.0,0.002]
[1625481737889,2.78156453,34404.0,34403.0,0.002]
[1625481737989,2.84056453,34404.0,34403.0,0.002]
[1625481738604,3.08113997,34404.0,34403.0,0.002]
[1625481745012,1.70807047,34404.0,34403.0,0.002]
[1625481745209,3.07974585,34404.0,34403.0,0.002]
[1625481746311,3.07974585,34404.0,34396.0,1.02243499]
[1625481746312,3.07974585,34404.0,34400.0,0.002]
[1625481746612,0.48115088,34401.0,34400.0,0.002]
[1625481746713,0.54015088,34401.0,34400.0,0.002]
[1625481746962,0.59915088,34401.0,34400.0,0.002]
[1625481747063,1.6277157,34401.0,34400.0,0.002]
[1625481748968,2.82755313,34401.0,34400.0,0.002]
[1625481754182,2.82755313,34401.0,34400.0,0.00615489]
[1625481754381,2.82755313,34401.0,34400.0,0.002]
[1625481754683,2.82755313,34401.0,34400.0,0.00615491]
[1625481758341,2.82755313,34401.0,34400.0,0.00415491]
[1625481758640,2.84232926,34401.0,34398.0,0.00415491]
[1625481758841,0.24057544,34399.0,34398.0,0.00415491]
[1625481758941,0.35857544,34399.0,34398.0,0.00415491]
[1625481759342,1.38745487,34399.0,34398.0,0.00415491]
[1625481759846,2.07341703,34399.0,34398.0,0.00415491]
[1625481762303,0.35857544,34399.0,34398.0,0.00415491]
[1625481763306,2.07334195,34399.0,34398.0,0.00415491]
[1625481766512,2.08811822,34399.0,34398.0,0.00415491]
[1625481767718,2.02911822,34399.0,34398.0,0.28290491]
[1625481767813,2.01434195,34399.0,34398.0,0.28290491]
[1625481767913,1.95534195,34399.0,34398.0,0.28290491]
[1625481768066,1.95534195,34399.0,34398.0,5.40620491]
[1625481768515,0.24057544,34399.0,34398.0,7.11170348]
[1625481768815,0.29957544,34399.0,34398.0,7.11170348]
[1625481768969,0.29957544,34399.0,34398.0,8.30551897]
[1625481769167,0.29957544,34399.0,34398.0,8.54609441]
[1625481769616,0.29957544,34399.0,34398.0,3.42279441]
[1625481770117,0.29957544,34399.0,34398.0,2.22897892]
[1625481770771,0.98568086,34399.0,34398.0,2.22897892]
[1625481777889,0.98568086,34399.0,34398.0,3.42463391]
[1625481778339,0.29957544,34399.0,34398.0,4.79104908]
[1625481779691,0.059,34399.0,34398.0,4.79104908]
[1625481781243,0.29957544,34399.0,34398.0,4.79104908]
[1625481783801,0.98746407,34399.0,34398.0,4.79104908]
[1625481783961,0.98746407,34399.0,34398.0,4.87934908]
[1625481784059,0.98746407,34399.0,34398.0,4.79104908]
[1625481784454,0.92846407,34399.0,34398.0,4.79104908]
[1625481784657,0.24057544,34399.0,34398.0,6.33020177]
[1625481786110,0.24057544,34399.0,34398.0,6.38920177]
[1625481786309,0.68785944,34400.0,34398.0,6.38920177]
[1625481786511,0.68785944,34400.0,34399.0,0.0041527]
[1625481786610,0.68785944,34400.0,34399.0,0.0631527]
[1625481786811,0.68785944,34400.0,34399.0,0.1221527]
[1625481786910,0.68827387,34401.0,34399.0,0.1221527]
[1625481787312,0.68827387,34401.0,34400.0,0.24472783]
[1625481787413,0.9286988,34403.0,34400.0,6.1124725]
[1625481787512,0.68812336,34403.0,34400.0,6.1124725]
[1625481787872,0.69211448,34404.0,34402.0,5.80583584]
[1625481788074,0.69211448,34404.0,34402.0,5.86483584]
[1625481788314,0.004,34404.0,34403.0,5.80246093]
[1625481788412,0.004,34404.0,34403.0,5.80661284]
[1625481788513,0.004,34404.0,34403.0,5.86561284]
[1625481789067,1.553e-05,34407.0,34403.0,5.86561284]
[1625481789170,0.8145448,34409.0,34403.0,6.02461284]
[1625481789290,0.8145448,34409.0,34403.0,6.52461284]
[1625481789404,0.8145448,34409.0,34408.0,0.72172632]
[1625481789466,0.8145448,34409.0,34408.0,1.13386632]
[1625481789564,0.8145448,34409.0,34408.0,1.14406349]
[1625481789667,1.03181167,34409.0,34408.0,1.14406349]
[1625481789767,1.03181167,34409.0,34408.0,1.14821438]
[1625481789968,1.03181167,34409.0,34408.0,6.33981438]
[1625481790170,1.03181167,34409.0,34408.0,6.43981438]
[1625481790418,1.0075,34410.0,34408.0,6.43981438]
[1625481790520,1.0075,34410.0,34408.0,11.0342313]
[1625481790821,1.0075,34410.0,34409.0,0.00415157]
[1625481790921,1.0075,34410.0,34409.0,0.12215157]
[1625481791122,1.0075,34410.0,34409.0,3.01208142]
[1625481791321,0.9975,34410.0,34409.0,3.00808142]
[1625481791524,0.9975,34410.0,34409.0,3.10808142]
[1625481792822,0.9975,34410.0,34409.0,3.04908142]
[1625481792925,0.9975,34410.0,34409.0,2.99008142]
[1625481793132,0.9975,34410.0,34409.0,1.46011856]
[1625481793727,1.0565,34410.0,34409.0,1.46011856]
[1625481794125,1.0565,34410.0,34409.0,0.10015157]
[1625481794928,1.0565,34410.0,34409.0,0.1]
[1625481796432,1.1155,34410.0,34409.0,0.1]
[1625481797333,1.59665088,34410.0,34409.0,0.1]
[1625481797782,1.53765088,34410.0,34409.0,0.1]
[1625481809516,2.73828565,34410.0,34409.0,0.1]
[1625481809614,2.95733565,34410.0,34409.0,0.1]
[1625481810014,4.3294859,34410.0,34409.0,0.1]
[1625481819287,4.84443076,34410.0,34409.0,0.1]
[1625481819837,5.87421592,34410.0,34409.0,0.1]
[1625481819988,5.87421592,34410.0,34409.0,0.10415054]
[1625481821493,5.87421592,34410.0,34409.0,0.4458464]
[1625481822195,5.87421592,34410.0,34409.0,0.95829909]
[1625481823049,4.50206567,34410.0,34409.0,0.61660323]
[1625481823446,4.44306567,34410.0,34409.0,0.61660323]
[1625481823897,3.2424309,34410.0,34409.0,2.83614148]
[1625481823996,3.0233809,34410.0,34409.0,2.83614148]
[1625481824399,3.0233809,34410.0,34409.0,1.6410055]
[1625481824849,3.0233809,34410.0,34409.0,2.83638199]
[1625481825851,3.0823809,34410.0,34409.0,1.6410055]
[1625481825952,3.4164809,34410.0,34409.0,1.6410055]
[1625481826103,3.43134287,34410.0,34409.0,1.6410055]
[1625481826555,1.88661285,34410.0,34409.0,0.10415054]
[1625481826657,1.87175088,34410.0,34409.0,0.10415054]
[1625481826909,1.88652375,34410.0,34409.0,0.10415054]
[1625481827261,1.88652375,34410.0,34409.0,1.6424898]
[1625481827262,4.63373935,34410.0,34409.0,1.6424898]
[1625481827812,6.00733744,34410.0,34409.0,0.61693029]
[1625481830716,4.63373935,34410.0,34409.0,0.61693029]
[1625481831214,4.61896648,34410.0,34409.0,0.61693029]
[1625481831319,4.61896648,34410.0,34409.0,1.63926893]
[1625481831517,4.55996648,34410.0,34409.0,1.63926893]
[1625481831818,3.3581133,34410.0,34409.0,2.83134912]
[1625481831919,3.0240133,34410.0,34409.0,2.83134912]
[1625481832772,3.0240133,34410.0,34409.0,2.89034912]
[1625481832873,3.0240133,34410.0,34409.0,4.25207411]
[1625481832874,1.99382891,34410.0,34409.0,4.25207411]
[1625481833424,1.51267803,34410.0,34409.0,4.25207411]
[1625481833526,1.85628574,34410.0,34409.0,4.25207411]
[1625481833829,1.85628574,34410.0,34409.0,4.31107411]
[1625481833926,1.85628574,34410.0,34409.0,4.25207411]
[1625481834027,0.9975,34410.0,34409.0,4.25207411]
[1625481834427,1.34116381,34410.0,34409.0,4.25207411]
[1625481835130,1.34116381,34410.0,34409.0,4.19307411]
[1625481835229,1.85654187,34410.0,34409.0,4.19307411]
[1625481835531,1.91554187,34410.0,34409.0,4.19307411]
[1625481835881,2.60254088,34410.0,34409.0,2.83134912]
[1625481836430,2.66154088,34410.0,34409.0,2.83134912]
[1625481836982,7.74644088,34410.0,34409.0,2.83134912]
[1625481837233,8.94887782,34410.0,34409.0,1.63926893]
[1625481837882,10.32350084,34410.0,34409.0,1.63926893]
[1625481841393,10.26450084,34410.0,34409.0,1.63926893]
[1625481841947,10.32350084,34410.0,34409.0,1.63926893]
[1625481842398,8.94887782,34410.0,34409.0,1.63926893]
[1625481843298,10.32390151,34410.0,34409.0,1.63926893]
[1625481845606,5.23900151,34410.0,34409.0,1.63926893]
[1625481845706,5.18000151,34410.0,34409.0,1.63926893]
[1625481847056,3.80497782,34410.0,34409.0,2.83306282]
[1625481849160,3.74597782,34410.0,34409.0,2.83306282]
[1625481849517,3.74597782,34410.0,34409.0,2.89206282]
[1625481849739,3.23121566,34410.0,34409.0,4.93845286]
[1625481850173,2.54354088,34410.0,34409.0,6.47139479]
[1625481850270,1.51344117,34410.0,34409.0,6.47139479]
[1625481851020,1.51344117,34410.0,34409.0,6.53039479]
[1625481851430,0.9975,34410.0,34409.0,6.53039479]
[1625481852274,0.9975,34410.0,34409.0,6.5405878]
[1625481852476,0.9975,34410.0,34409.0,6.53039479]
[1625481852679,0.9975,34410.0,34409.0,6.54058503]
[1625481853128,0.9975,34410.0,34409.0,6.53039479]
[1625481853478,0.9975,34410.0,34409.0,6.54058466]
[1625481853727,0.9975,34410.0,34409.0,6.48158466]
[1625481853829,0.9975,34410.0,34409.0,6.53039479]
[1625481854079,0.9975,34410.0,34409.0,6.54058617]
[1625481854379,0.9975,34410.0,34409.0,6.53039479]
[1625481855935,0.9975,34410.0,34409.0,6.54058078]
[1625481856487,0.9975,34410.0,34409.0,6.53039479]
[1625481858589,0.9975,34410.0,34409.0,6.47139479]
[1625481859090,0.9975,34410.0,34409.0,6.53039479]
[1625481859342,0.9975,34410.0,34409.0,6.47139479]
[1625481859542,0.9975,34410.0,34409.0,6.53039479]
[1625481859642,0.9975,34410.0,34409.0,6.47139479]
[1625481860242,0.9975,34410.0,34409.0,6.53039479]
[1625481860444,0.9975,34410.0,34409.0,6.47139479]
[1625481860550,0.9975,34410.0,34409.0,6.53039479]
[1625481860644,0.9975,34410.0,34409.0,6.47139479]
[1625481861045,0.9975,34410.0,34409.0,6.41239479]
[1625481861246,1.32649,34410.0,34409.0,6.41239479]
[1625481861647,1.44449,34410.0,34409.0,4.87945286]
[1625481861747,1.68506544,34410.0,34409.0,4.87945286]
[1625481862049,8.16905817,34410.0,34409.0,3.51519283]
[1625481862499,8.16905817,34410.0,34409.0,2.32139894]
[1625481863349,9.37109714,34410.0,34409.0,2.32139894]
[1625481865053,9.37109714,34410.0,34409.0,1.2990603]
[1625481867758,9.37109714,34410.0,34409.0,1.29490976]
[1625481869362,5.11949714,34410.0,34409.0,1.29490976]
[1625481869466,5.06049714,34410.0,34409.0,1.29490976]
[1625481869667,4.73150714,34410.0,34409.0,1.29904047]
[1625481869768,4.67250714,34410.0,34409.0,1.29904047]
[1625481870468,1.23807544,34410.0,34409.0,4.87349306]
[1625481872823,1.23807544,34410.0,34409.0,4.93249306]
[1625481872924,1.23807544,34410.0,34409.0,4.99149306]
[1625481873026,0.9975,34410.0,34409.0,4.99149306]
[1625481873228,0.9975,34410.0,34409.0,6.52184613]
[1625481880691,0.9975,34410.0,34409.0,6.53204061]
[1625481882292,0.2618201,34417.0,34409.0,6.53204061]
[1625481882392,0.2618201,34417.0,34409.0,7.03204061]
[1625481882492,0.2618201,34417.0,34410.0,0.00412829]
[1625481882592,0.2618201,34417.0,34410.0,0.30325597]
[1625481882692,0.2618201,34417.0,34410.0,0.86225597]
[1625481882796,0.2618201,34417.0,34411.0,0.01017649]
[1625481882893,0.004,34417.0,34416.0,6.28785536]
[1625481882994,0.004,34417.0,34416.0,6.40585536]
[1625481883294,0.004,34417.0,34416.0,6.40998358]
[1625481883945,0.004,34417.0,34416.0,7.1317099]
[1625481884045,0.004,34417.0,34416.0,7.2317099]
[1625481884146,0.004,34417.0,34416.0,7.7317099]
[1625481886301,0.004,34417.0,34416.0,7.2317099]
[1625481887354,0.004,34424.0,34416.0,7.2317099]
[1625481887653,0.004,34424.0,34416.0,7.1317099]
[1625481887854,0.004,34424.0,34417.0,0.004126]
[1625481887955,0.004,34424.0,34423.0,3.42738152]
[1625481888055,0.004,34424.0,34423.0,4.16279532]
[1625481888257,0.004,34424.0,34423.0,4.22179532]
[1625481888355,0.004,34424.0,34423.0,4.32592124]
[1625481889008,0.004,34424.0,34423.0,5.67966897]
[1625481889557,0.004,34424.0,34423.0,5.67554305]
[1625481889810,0.004,34424.0,34423.0,5.679669]
[1625481890010,0.004,34424.0,34423.0,4.32592127]
[1625481891160,0.004,34424.0,34423.0,7.19887178]
[1625481891260,0.004,34424.0,34423.0,7.69887178]
[1625481892864,0.006,34426.0,34423.0,7.69887178]
[1625481893213,0.006,34426.0,34424.0,0.00412475]
[1625481893318,0.9556,34431.0,34424.0,0.33712475]
[1625481893415,0.9556,34431.0,34425.0,4.73003712]
[1625481893515,0.9556,34431.0,34425.0,4.78903712]
[1625481893615,0.9556,34431.0,34425.0,4.84803712]
[1625481893715,0.9556,34431.0,34426.0,0.00412033]
[1625481893816,0.9556,34431.0,34426.0,0.06312033]
[1625481893916,0.9556,34431.0,34426.0,0.12212033]
[1625481894019,0.9556,34431.0,34430.0,2.77496853]
[1625481894116,0.9556,34431.0,34430.0,2.89296853]
[1625481894519,0.08574834,34434.0,34430.0,3.39296853]
[1625481894819,0.08574834,34434.0,34431.0,0.00411955]
[1625481894919,0.24057544,34439.0,34433.0,4.71457439]
[1625481895018,0.25686547,34440.0,34433.0,5.27357439]
[1625481895123,0.25686547,34440.0,34433.0,5.33257439]
[1625481895567,0.14376547,34440.0,34439.0,0.1]
[1625481895669,0.51335195,34443.0,34439.0,2.03008621]
[1625481895769,0.51335195,34443.0,34439.0,2.14808621]
[1625481895870,0.51335195,34443.0,34439.0,2.15220464]
[1625481896070,0.51335195,34443.0,34442.0,0.72172632]
[1625481896171,0.51335195,34443.0,34442.0,1.33972632]
[1625481896421,0.85431092,34453.0,34446.0,4.6184]
[1625481896527,0.85431092,34453.0,34447.0,0.5]
[1625481896727,0.85431092,34453.0,34447.0,0.618]
[1625481896827,0.85431092,34453.0,34452.0,0.1]
[1625481897027,0.68334626,34454.0,34452.0,0.1]
[1625481897028,0.34175597,34454.0,34452.0,0.1]
[1625481897226,0.34175597,34454.0,34452.0,0.159]
[1625481897327,0.34175597,34454.0,34452.0,0.1]
[1625481897427,0.34175597,34454.0,34452.0,0.059]
[1625481897528,0.34175597,34454.0,34449.0,0.83811011]
[1625481897627,0.34175597,34454.0,34449.0,0.89711011]
[1625481897727,0.34175597,34454.0,34449.0,0.95611011]
[1625481898028,1.19588971,34455.0,34453.0,0.72172632]
[1625481898129,0.68334987,34454.0,34453.0,0.72172632]
[1625481898328,0.68334987,34454.0,34453.0,0.82172632]
[1625481899732,0.34123613,34455.0,34453.0,0.82172632]
[1625481900184,0.34123613,34455.0,34453.0,0.72172632]
[1625481900537,0.85302437,34455.0,34453.0,0.72172632]
[1625481900785,0.85302437,34455.0,34454.0,0.1]
[1625481901134,0.34123613,34455.0,34454.0,0.1]
[1625481902186,0.34123613,34455.0,34454.0,0.159]
[1625481902386,0.3408619,34456.0,34454.0,0.159]
[1625481902685,0.3408619,34456.0,34454.0,0.1]
[1625481902787,1.25076033,34457.0,34454.0,0.1]
[1625481902986,1.25076033,34457.0,34453.0,0.72172632]
[1625481903187,0.34086449,34456.0,34453.0,0.72172632]
[1625481903637,0.34086449,34456.0,34455.0,0.1]
[1625481904742,0.85209089,34456.0,34455.0,0.1]
[1625481905642,1.25046613,34457.0,34455.0,0.1]
[1625481905991,1.25046613,34457.0,34454.0,0.002]
[1625481906391,0.34057804,34456.0,34454.0,0.002]
[1625481907144,0.9099,34457.0,34454.0,0.002]
[1625481907396,0.9099,34457.0,34455.0,0.1]
[1625481907794,0.9099,34457.0,34454.0,0.002]
[1625481908396,0.9099,34457.0,34456.0,0.1]
[1625481908494,1.25026825,34457.0,34456.0,0.1]
[1625481910648,0.9099,34457.0,34456.0,0.1]
[1625481911460,0.9689,34457.0,34456.0,0.1]
[1625481911565,1.0279,34457.0,34456.0,0.1]
[1625481911959,4.42872967,34457.0,34456.0,0.1]
[1625481912058,4.42872967,34457.0,34456.0,0.0668]
[1625481912154,4.66930511,34457.0,34456.0,0.0668]
[1625481912953,2.45886783,34457.0,34456.0,0.0668]
[1625481913153,1.94867538,34457.0,34456.0,0.0668]
[1625481913505,3.47844499,34457.0,34456.0,0.0668]
[1625481914711,3.47844499,34457.0,34456.0,0.0001]
[1625481915310,4.66788847,34457.0,34456.0,0.0001]
[1625481917315,4.66788847,34457.0,34456.0,0.0021]
[1625481917816,4.5563,34453.0,34450.0,0.008]
[1625481917915,4.6153,34453.0,34448.0,0.25057544]
[1625481918015,4.6743,34453.0,34448.0,0.01]
[1625481918214,0.72172632,34449.0,34448.0,0.01]
[1625481918315,1.06665632,34449.0,34448.0,0.01]
[1625481918817,1.40659886,34449.0,34448.0,0.01]
[1625481920270,1.40459886,34449.0,34448.0,0.008]
[1625481920470,1.06465632,34449.0,34448.0,0.008]
[1625481920973,1.07950302,34449.0,34448.0,0.008]
[1625481921073,3.28841101,34449.0,34448.0,0.008]
[1625481921372,3.28841101,34449.0,34442.0,0.24057544]
[1625481921823,0.0148471,34448.0,34442.0,0.24057544]
[1625481921924,0.0738471,34448.0,34442.0,0.24057544]
[1625481922023,0.1328471,34448.0,34442.0,0.24057544]
[1625481922178,0.24057544,34443.0,34442.0,0.24057544]
[1625481922275,0.35857544,34443.0,34442.0,0.24057544]
[1625481923427,0.35857544,34443.0,34442.0,0.34057544]
[1625481924288,0.35857544,34443.0,34437.0,0.24057544]
[1625481924383,0.35857544,34443.0,34433.0,0.24057544]
[1625481924837,1.20931106,34443.0,34433.0,0.24057544]
[1625481925034,1.20931106,34443.0,34434.0,0.00412593]
[1625481925137,4.1503,34436.0,34434.0,0.00412593]
[1625481925237,4.47899,34436.0,34434.0,0.00412593]
[1625481925339,4.53799,34436.0,34433.0,0.24057544]
[1625481926187,0.48115088,34434.0,34433.0,0.24057544]
[1625481926287,0.54015088,34434.0,34433.0,0.24057544]
[1625481926389,0.59915088,34434.0,34433.0,0.24057544]
[1625481927140,0.59915088,34434.0,34426.0,0.33537158]
[1625481927689,0.59915088,34434.0,34427.0,0.00412607]
[1625481927989,0.59915088,34434.0,34425.0,0.33560973]
[1625481928191,0.48115088,34426.0,34425.0,0.33560973]
[1625481928292,0.81870088,34426.0,34425.0,0.33560973]
[1625481928642,0.81870088,34426.0,34425.0,0.83940506]
[1625481928743,0.81870088,34426.0,34425.0,0.84353114]
[1625481928994,0.81870088,34426.0,34425.0,0.84418889]
[1625481929895,0.81870088,34426.0,34425.0,0.84006281]
[1625481930196,0.81870088,34426.0,34425.0,0.33626748]
[1625481930947,0.81870088,34426.0,34425.0,0.34039292]
[1625481931049,0.81870088,34426.0,34425.0,0.00478319]
[1625481931598,0.81870088,34426.0,34425.0,0.84464414]
[1625481932299,0.81870088,34426.0,34425.0,0.56769976]
[1625481932399,0.48115088,34426.0,34425.0,0.56769976]
[1625481932598,0.48115088,34426.0,34425.0,0.50869976]